[Event "Rapidturnier Deutsche Meister"]
[Site "Leipzig"]
[Date "2020.10.03"]
[Round "2.4"]
[White "Mai, Iris"]
[Black "Wagner-Michel, Annett"]
[Result "1/2-1/2"]
[ECO "D55"]
[WhiteElo "2021"]
[BlackElo "2011"]
[Annotator "broadcasts"]
[PlyCount "37"]
[EventDate "2020.10.03"]
[EventType "swiss"]
[EventCountry "GER"]
[TimeControl "900+5"]

1. d4 {[%emt 0:00:01]} d5 {[%emt 0:00:00]} 2. Nf3 {[%emt 0:00:05]} Nf6 {[%emt 0:00:00]} 3. c4 {[%emt 0:00:05]} e6 {[%emt 0:00:04]} 4. Nc3 {[%emt 0:00:08]} Be7 {[%emt 0:00:07]} 5. Bg5 {[%emt 0:00:36]} O-O {[%emt 0:00:09]} 6. e3 {[%emt 0:00:08]} b6 {[%emt 0:00:24]} 7. cxd5 {[%emt 0:00:08]} exd5 {[%emt 0:00:03]} 8. Be2 {[%emt 0:00:13]} Bb7 {[%emt 0:01:34]} 9. O-O {[%emt 0:00:05]} Ne4 {[%emt 0:00:22]} 10. Bxe7 {[%emt 0:00:10]} Qxe7 {[%emt 0:00:02]} 11. Qb3 {[%emt 0:00:08]} Nxc3 {[%emt 0:01:19]} 12. bxc3 {[%emt 0:01:20]} c5 {[%emt 0:00:39]} 13. a4 {[%emt 0:00:32]} c4 {[%emt 0:02:00]} 14. Qb2 {[%emt 0:00:20]} Nc6 {[%emt 0:00:05]} 15. Nd2 {[%emt 0:01:46]} Rab8 {[%emt 0:00:33]} 16. Bf3 {[%emt 0:00:04]} Na5 {[%emt 0:00:04]} 17. Rfb1 {[%emt 0:02:45]} h6 {[%emt 0:00:25]} 18. Qb4 {[%emt 0:00:04]} Qg5 {[%emt 0:00:25]} 19. Qd6 {[%emt 0:00:55]} 1/2-1/2

[Event "Rapidturnier Deutsche Meister"]
[Site "Leipzig"]
[Date "2020.10.03"]
[Round "2.5"]
[White "Schoeneberg, Manfred"]
[Black "Paehtz, Thomas"]
[Result "0-1"]
[ECO "B08"]
[WhiteElo "2133"]
[BlackElo "2297"]
[Annotator "broadcasts"]
[PlyCount "71"]
[EventDate "2020.10.03"]
[EventType "swiss"]
[EventCountry "GER"]
[TimeControl "900+5"]

1. e4 {[%emt 0:00:00]} g6 {[%emt 0:00:26]} 2. d4 Bg7 3. Nc3 d6 {[%emt 0:00:00]} 4. Nf3 {[%emt 0:00:15]} a6 {[%emt 0:00:00]} 5. a4 {[%emt 0:00:05]} Nf6 {[%emt 0:00:00]} 6. Be2 {[%emt 0:00:05]} O-O {[%emt 0:00:13]} 7. O-O {[%emt 0:00:00]} Nc6 {[%emt 0:00:02]} 8. h3 {[%emt 0:00:57]} e5 {[%emt 0:00:51]} 9. dxe5 {[%emt 0:00:33]} dxe5 {[%emt 0:00:14]} 10. Qxd8 {[%emt 0:00:03]} Rxd8 {[%emt 0:00:02]} 11. Bg5 {[%emt 0:00:04]} Be6 {[%emt 0:00:33]} 12. Rad1 {[%emt 0:01:20]} Nd4 {[%emt 0:00:10]} 13. Nxe5 {[%emt 0:01:20]} Nxe2+ {[%emt 0:00:09]} 14. Nxe2 {[%emt 0:00:02]} Rxd1 {[%emt 0:00:05]} 15. Rxd1 {[%emt 0:00:01]} Nxe4 {[%emt 0:00:03]} 16. Bf4 {[%emt 0:00:43]} g5 {[%emt 0:00:22]} 17. Bh2 {[%emt 0:00:34]} f5 {[%emt 0:00:25]} 18. Nd4 {[%emt 0:01:17]} Rd8 {[%emt 0:00:03]} 19. Rd3 {[%emt 0:00:44]} Bc8 {[%emt 0:00:52]} 20. Nxf5 {[%emt 0:02:08]} Rxd3 {[%emt 0:00:20]} 21. Ne7+ {[%emt 0:00:14]} Kf8 {[%emt 0:00:08]} 22. cxd3 {[%emt 0:00:09]} Kxe7 {[%emt 0:00:37]} 23. dxe4 {[%emt 0:00:02]} c5 {[%emt 0:01:09]} 24. Nc4 {[%emt 0:01:43]} b5 {[%emt 0:00:43]} 25. axb5 {[%emt 0:00:02]} axb5 {[%emt 0:00:03]} 26. Be5 {[%emt 0:01:48]} Bxe5 {[%emt 0:01:06]} 27. Nxe5 {[%emt 0:00:02]} Kf6 {[%emt 0:01:45]} 28. Ng4+ {[%emt 0:01:30]} Ke6 {[%emt 0:00:02]} 29. Kf1 {[%emt 0:00:42]} h5 {[%emt 0:00:12]} 30. Ne3 {[%emt 0:00:01]} Ke5 {[%emt 0:00:01]} 31. f3 {[%emt 0:00:21]} c4 {[%emt 0:01:15]} 32. Ke2 {[%emt 0:00:05]} h4 {[%emt 0:00:41]} 33. Kd2 {[%emt 0:00:38]} Kf4 {[%emt 0:00:46]} 34. Ke2 {[%emt 0:00:07]} Kg3 {[%emt 0:00:41]} 35. Kf1 {[%emt 0:00:03]} b4 {[%emt 0:00:09]} 36. Kg1 {[%emt 0:00:22]} 0-1

[Event "Rapidturnier Deutsche Meister"]
[Site "Leipzig"]
[Date "2020.10.03"]
[Round "2.6"]
[White "Boensch, Uwe"]
[Black "Bastian, Herbert"]
[Result "1-0"]
[ECO "D33"]
[WhiteElo "2508"]
[BlackElo "2269"]
[Annotator "broadcasts"]
[PlyCount "61"]
[EventDate "2020.10.03"]
[EventType "swiss"]
[EventCountry "GER"]
[TimeControl "900+5"]

1. d4 {[%emt 0:00:00]} d5 {[%emt 0:00:09]} 2. c4 {[%emt 0:00:00]} e6 {[%emt 0:00:03]} 3. Nf3 {[%emt 0:00:04]} Nf6 {[%emt 0:00:03]} 4. Nc3 {[%emt 0:00:05]} Be7 {[%emt 0:00:04]} 5. g3 {[%emt 0:00:35]} O-O {[%emt 0:00:28]} 6. Bg2 {[%emt 0:00:02]} c5 {[%emt 0:00:24]} 7. cxd5 {[%emt 0:00:16]} exd5 {[%emt 0:00:04]} 8. O-O {[%emt 0:00:06]} h6 {[%emt 0:00:37]} 9. Bf4 {[%emt 0:00:18]} Nc6 {[%emt 0:00:10]} 10. Rc1 {[%emt 0:00:13]} Be6 {[%emt 0:01:06]} 11. dxc5 {[%emt 0:00:20]} Bxc5 {[%emt 0:00:05]} 12. Ne5 {[%emt 0:00:42]} Rc8 {[%emt 0:00:58]} 13. Nxc6 {[%emt 0:01:04]} bxc6 {[%emt 0:00:18]} 14. e4 {[%emt 0:00:35]} Bb6 {[%emt 0:00:33]} 15. e5 {[%emt 0:02:27]} Nd7 {[%emt 0:00:31]} 16. Qh5 {[%emt 0:00:50]} f6 {[%emt 0:01:00]} 17. exf6 {[%emt 0:01:44]} Qxf6 {[%emt 0:00:30]} 18. Be3 {[%emt 0:01:54]} Ne5 {[%emt 0:00:46]} 19. Qe2 {[%emt 0:03:26]} Rce8 {[%emt 0:00:46]} 20. Bxb6 {[%emt 0:00:07]} axb6 {[%emt 0:00:02]} 21. f4 {[%emt 0:00:08]} Nc4 {[%emt 0:00:21]} 22. Qf2 {[%emt 0:00:08]} Bg4 {[%emt 0:01:05]} 23. Nxd5 {[%emt 0:00:03]} Qxb2 {[%emt 0:00:37]} 24. Qxb2 {[%emt 0:00:08]} Nxb2 {[%emt 0:00:01]} 25. Rxc6 {[%emt 0:00:02]} b5 {[%emt 0:00:14]} 26. Rb1 {[%emt 0:00:30]} Nc4 {[%emt 0:00:43]} 27. h3 {[%emt 0:00:05]} Bd7 {[%emt 0:00:21]} 28. Rc7 {[%emt 0:00:01]} Rd8 {[%emt 0:00:04]} 29. a4 {[%emt 0:00:14]} Nd2 {[%emt 0:01:14]} 30. Rd1 {[%emt 0:00:03]} Nb3 {[%emt 0:00:02]} 31. Ne7+ {[%emt 0:00:08]} 1-0

[Event "Rapidturnier Deutsche Meister"]
[Site "Leipzig"]
[Date "2020.10.03"]
[Round "2.7"]
[White "Heinatz, Gundula"]
[Black "Burchardt, Brigitte"]
[Result "1/2-1/2"]
[ECO "D02"]
[WhiteElo "2197"]
[BlackElo "2067"]
[Annotator "broadcasts"]
[PlyCount "23"]
[EventDate "2020.10.03"]
[EventType "swiss"]
[EventCountry "GER"]
[TimeControl "900+5"]

1. d4 {[%emt 0:00:00]} d5 {[%emt 0:00:00]} 2. Nf3 {[%emt 0:00:01]} Nf6 {[%emt 0:00:00]} 3. Bf4 {[%emt 0:00:02]} c6 {[%emt 0:00:03]} 4. e3 {[%emt 0:00:04]} Bf5 {[%emt 0:00:04]} 5. Bd3 {[%emt 0:00:05]} Bxd3 {[%emt 0:00:03]} 6. cxd3 {[%emt 0:00:02]} Nbd7 {[%emt 0:00:11]} 7. Nc3 {[%emt 0:00:03]} Nh5 {[%emt 0:00:11]} 8. Be5 {[%emt 0:00:09]} Nxe5 {[%emt 0:01:36]} 9. dxe5 {[%emt 0:00:02]} g6 {[%emt 0:00:01]} 10. O-O {[%emt 0:00:35]} e6 {[%emt 0:00:07]} 11. d4 {[%emt 0:00:16]} Be7 {[%emt 0:00:09]} 12. Rc1 {[%emt 0:01:34]} 1/2-1/2

[Event "Rapidturnier Deutsche Meister"]
[Site "Leipzig"]
[Date "2020.10.03"]
[Round "2.9"]
[White "Just, Gabriele"]
[Black "Seidemann, Ulricke"]
[Result "0-1"]
[ECO "D02"]
[WhiteElo "1837"]
[BlackElo "2043"]
[Annotator "broadcasts"]
[PlyCount "82"]
[EventDate "2020.10.03"]
[EventType "swiss"]
[EventCountry "GER"]
[TimeControl "900+5"]

1. d4 {[%emt 0:00:00]} d5 {[%emt 0:00:00]} 2. Nf3 {[%emt 0:00:03]} e6 {[%emt 0:00:19]} 3. Bf4 {[%emt 0:00:15]} c5 {[%emt 0:00:10]} 4. c3 {[%emt 0:00:16]} Nc6 {[%emt 0:00:13]} 5. e3 {[%emt 0:00:18]} Bd6 {[%emt 0:00:59]} 6. Nbd2 {[%emt 0:00:56]} Bxf4 {[%emt 0:00:16]} 7. exf4 {[%emt 0:00:02]} cxd4 {[%emt 0:00:29]} 8. cxd4 {[%emt 0:01:09]} Qf6 {[%emt 0:00:34]} 9. Bb5 {[%emt 0:00:50]} Nge7 {[%emt 0:00:10]} 10. g3 {[%emt 0:00:07]} O-O {[%emt 0:00:05]} 11. O-O {[%emt 0:00:02]} Nxd4 {[%emt 0:00:47]} 12. Nxd4 {[%emt 0:03:46]} Qxd4 {[%emt 0:00:02]} 13. Qc2 {[%emt 0:00:02]} Ng6 {[%emt 0:03:06]} 14. Rfe1 {[%emt 0:00:18]} Qf6 {[%emt 0:01:48]} 15. Nf3 {[%emt 0:00:27]} a6 {[%emt 0:00:46]} 16. Bd3 {[%emt 0:00:19]} h6 {[%emt 0:01:03]} 17. a4 {[%emt 0:00:52]} Bd7 {[%emt 0:00:19]} 18. Qe2 {[%emt 0:00:19]} Bc6 {[%emt 0:00:52]} 19. a5 {[%emt 0:00:34]} Rac8 {[%emt 0:00:16]} 20. Rac1 {[%emt 0:00:05]} Bd7 {[%emt 0:00:09]} 21. Bxg6 {[%emt 0:00:27]} Qxg6 {[%emt 0:00:08]} 22. Ne5 {[%emt 0:00:05]} Qe4 {[%emt 0:03:01]} 23. Nxd7 {[%emt 0:00:07]} Qxe2 {[%emt 0:00:15]} 24. Rxe2 {[%emt 0:01:05]} Rxc1+ {[%emt 0:00:38]} 25. Kg2 Rfc8 {[%emt 0:00:00]} 26. b4 {[%emt 0:00:23]} R1c2 {[%emt 0:00:00]} 27. Kf3 {[%emt 0:00:21]} Rxe2 {[%emt 0:00:00]} 28. Kxe2 {[%emt 0:00:01]} Rc4 {[%emt 0:00:00]} 29. Nc5 {[%emt 0:01:25]} Rxb4 {[%emt 0:00:00]} 30. Ke3 {[%emt 0:00:02]} Rb5 {[%emt 0:00:00]} 31. Kd4 {[%emt 0:00:06]} Kf8 {[%emt 0:00:00]} 32. f5 {[%emt 0:00:14]} Ke7 {[%emt 0:00:00]} 33. f4 {[%emt 0:00:10]} Rxa5 {[%emt 0:00:00]} 34. Nxb7 {[%emt 0:00:02]} Ra4+ {[%emt 0:00:00]} 35. Ke3 {[%emt 0:00:07]} exf5 {[%emt 0:00:00]} 36. Nc5 {[%emt 0:00:22]} Re4+ {[%emt 0:00:00]} 37. Kd3 {[%emt 0:00:06]} a5 {[%emt 0:00:00]} 38. h3 {[%emt 0:00:14]} h5 {[%emt 0:00:02]} 39. g4 {[%emt 0:00:31]} hxg4 {[%emt 0:00:02]} 40. hxg4 {[%emt 0:00:01]} Rxf4 {[%emt 0:00:03]} 41. gxf5 {[%emt 0:00:06]} Kf6 {[%emt 0:00:06]} 0-1

[Event "Rapidturnier Deutsche Meister"]
[Site "Leipzig"]
[Date "2020.10.03"]
[Round "3.1"]
[White "Hecht, Hans-Joachim"]
[Black "Baumbach, Friedrich"]
[Result "1-0"]
[ECO "D55"]
[WhiteElo "2311"]
[BlackElo "2127"]
[Annotator "ChessBase"]
[PlyCount "107"]
[EventDate "2020.10.03"]
[EventType "swiss"]
[EventCountry "GER"]
[SourceTitle "playchess.com"]
[Source "ChessBase"]
[SourceQuality "1"]
[TimeControl "900+5"]

1. d4 {[%emt 0:00:00]} d5 {[%emt 0:00:00]} 2. c4 {[%emt 0:00:00]} e6 {[%emt 0:00:00]} 3. Nc3 {[%emt 0:00:00]} Nf6 {[%emt 0:00:00]} 4. Bg5 {[%emt 0:00:00]} Be7 {[%emt 0:00:03]} 5. e3 {[%emt 0:00:06]} h6 {[%emt 0:00:13]} 6. Bxf6 {[%emt 0:00:00]} Bxf6 {[%emt 0:00:02]} 7. Nf3 {[%emt 0:00:00]} O-O {[%emt 0:00:05]} 8. Rc1 {[%emt 0:00:01]} c6 {[%emt 0:00:04]} 9. h4 {[%emt 0:00:01]} Nd7 {[%emt 0:00:06]} 10. g4 {[%emt 0:00:01]} e5 {[%emt 0:00:49]} 11. cxd5 {[%emt 0:00:42]} exd4 {[%emt 0:01:00]} 12. Nxd4 {[%emt 0:00:13]} cxd5 {[%emt 0:00:18]} 13. g5 {[%emt 0:00:55]} Bxd4 {[%emt 0:00:41]} 14. Qxd4 {[%emt 0:00:05]} hxg5 {[%emt 0:00:12]} 15. hxg5 {[%emt 0:00:08]} Qxg5 {[%emt 0:00:16]} 16. Nxd5 Ne5 {[%emt 0:00:28]} 17. Be2 {[%emt 0:00:14]} Nc6 {[%emt 0:02:56]} 18. Qh4 {[%emt 0:02:59]} Qxh4 {[%emt 0:00:06]} 19. Rxh4 {[%emt 0:00:00]} Be6 {[%emt 0:00:24]} 20. Nc7 {[%emt 0:00:48]} Rac8 {[%emt 0:00:19]} 21. Nxe6 {[%emt 0:00:05]} fxe6 {[%emt 0:00:02]} 22. Bc4 {[%emt 0:00:44]} Rf6 {[%emt 0:00:11]} 23. Ke2 {[%emt 0:00:41]} Rcf8 {[%emt 0:00:06]} 24. f4 {[%emt 0:00:21]} Ne7 {[%emt 0:01:01]} 25. Rh5 {[%emt 0:00:10]} Nf5 {[%emt 0:00:09]} 26. Rxf5 {[%emt 0:00:02]} Rxf5 {[%emt 0:00:03]} 27. Bxe6+ {[%emt 0:00:02]} Kh7 {[%emt 0:00:15]} 28. Bxf5+ {[%emt 0:00:20]} Rxf5 {[%emt 0:00:01]} 29. Kf3 {[%emt 0:00:09]} Rb5 {[%emt 0:00:06]} 30. Rc2 {[%emt 0:00:02]} Ra5 {[%emt 0:00:01]} 31. b3 {[%emt 0:00:07]} Rh5 {[%emt 0:00:04]} 32. Kg4 {[%emt 0:00:12]} Rh1 {[%emt 0:00:07]} 33. Rc7 {[%emt 0:00:05]} Rg1+ {[%emt 0:00:19]} 34. Kf5 {[%emt 0:00:03]} Ra1 {[%emt 0:00:13]} 35. a4 {[%emt 0:00:01]} Re1 {[%emt 0:00:15]} 36. e4 {[%emt 0:00:11]} b6 {[%emt 0:00:33]} 37. b4 {[%emt 0:00:07]} a5 {[%emt 0:00:32]} 38. bxa5 {[%emt 0:00:04]} bxa5 {[%emt 0:00:01]} 39. Rc5 {[%emt 0:00:02]} Rh1 {[%emt 0:00:08]} 40. e5 {[%emt 0:00:01]} Rd1 {[%emt 0:00:23]} 41. Rxa5 {[%emt 0:00:02]} g6+ {[%emt 0:00:01]} 42. Ke4 {[%emt 0:00:56]} Re1+ {[%emt 0:00:14]} 43. Kf3 {[%emt 0:00:01]} g5 {[%emt 0:00:14]} 44. fxg5 {[%emt 0:00:36]} Kg6 {[%emt 0:00:04]} 45. Kf4 {[%emt 0:00:01]} Rf1+ {[%emt 0:00:02]} 46. Ke4 {[%emt 0:00:01]} Kxg5 {[%emt 0:00:08]} 47. Ra8 {[%emt 0:00:04]} Re1+ {[%emt 0:00:11]} 48. Kd5 {[%emt 0:00:01]} Kg6 {[%emt 0:00:10]} 49. a5 {[%emt 0:00:12]} Kf7 {[%emt 0:00:05]} 50. Ra7+ {[%emt 0:00:04]} Ke8 {[%emt 0:00:04]} 51. a6 {[%emt 0:00:03]} Rb1 {[%emt 0:00:05]} 52. Rb7 {[%emt 0:00:11]} Rd1+ {[%emt 0:00:14]} 53. Ke6 {[%emt 0:00:02]} Rh1 {[%emt 0:00:35]} 54. Rb6 {[%emt 0:00:06]} 1-0

[Event "Rapidturnier Deutsche Meister"]
[Site "Leipzig"]
[Date "2020.10.03"]
[Round "3.3"]
[White "Paehtz, Thomas"]
[Black "Tischbierek, Raj"]
[Result "1/2-1/2"]
[ECO "D14"]
[WhiteElo "2297"]
[BlackElo "2367"]
[Annotator "ChessBase"]
[PlyCount "22"]
[EventDate "2020.10.03"]
[EventType "swiss"]
[EventCountry "GER"]
[SourceTitle "playchess.com"]
[Source "ChessBase"]
[SourceQuality "1"]
[TimeControl "900+5"]

1. d4 {[%emt 0:00:06]} d5 {[%emt 0:00:00]} 2. c4 {[%emt 0:00:02]} c6 {[%emt 0:00:00]} 3. cxd5 {[%emt 0:00:02]} cxd5 {[%emt 0:00:00]} 4. Nf3 {[%emt 0:00:03]} Nf6 {[%emt 0:00:00]} 5. Nc3 {[%emt 0:00:02]} Nc6 {[%emt 0:00:02]} 6. Bf4 {[%emt 0:00:05]} Bf5 {[%emt 0:00:02]} 7. e3 {[%emt 0:00:02]} e6 {[%emt 0:00:01]} 8. Bd3 {[%emt 0:00:02]} Bxd3 {[%emt 0:00:02]} 9. Qxd3 {[%emt 0:00:01]} Bd6 {[%emt 0:00:02]} 10. Bxd6 {[%emt 0:00:02]} Qxd6 {[%emt 0:00:01]} 11. O-O {[%emt 0:00:03]} O-O {[%emt 0:00:02]} 1/2-1/2

[Event "Rapidturnier Deutsche Meister"]
[Site "Leipzig"]
[Date "2020.10.03"]
[Round "3.4"]
[White "Wagner-Michel, Annett"]
[Black "Goehler, Antje"]
[Result "1-0"]
[ECO "B52"]
[WhiteElo "2011"]
[BlackElo "2102"]
[Annotator "ChessBase"]
[PlyCount "83"]
[EventDate "2020.10.03"]
[EventType "swiss"]
[EventCountry "GER"]
[SourceTitle "playchess.com"]
[Source "ChessBase"]
[SourceQuality "1"]
[TimeControl "900+5"]

1. e4 {[%emt 0:00:00]} c5 {[%emt 0:00:00]} 2. Nf3 {[%emt 0:00:02]} d6 {[%emt 0:00:00]} 3. Bb5+ {[%emt 0:00:03]} Bd7 {[%emt 0:00:00]} 4. a4 {[%emt 0:00:09]} a6 {[%emt 0:00:05]} 5. Bxd7+ {[%emt 0:00:18]} Nxd7 {[%emt 0:00:05]} 6. O-O {[%emt 0:00:15]} Ngf6 {[%emt 0:00:03]} 7. Re1 {[%emt 0:00:03]} Qc7 {[%emt 0:00:06]} 8. Nc3 {[%emt 0:00:18]} e6 {[%emt 0:00:02]} 9. h3 {[%emt 0:00:21]} Be7 {[%emt 0:00:04]} 10. d3 {[%emt 0:00:24]} O-O {[%emt 0:00:04]} 11. b3 {[%emt 0:00:21]} Rfe8 {[%emt 0:00:33]} 12. Bf4 {[%emt 0:01:04]} Ne5 {[%emt 0:00:09]} 13. a5 {[%emt 0:01:07]} Nfd7 {[%emt 0:00:08]} 14. Nxe5 {[%emt 0:00:24]} Nxe5 {[%emt 0:00:13]} 15. Qd2 {[%emt 0:00:11]} Bf6 {[%emt 0:00:08]} 16. Ra4 {[%emt 0:00:30]} Nc6 {[%emt 0:00:49]} 17. Ne2 {[%emt 0:00:12]} Bd8 {[%emt 0:00:54]} 18. d4 {[%emt 0:00:58]} cxd4 {[%emt 0:00:34]} 19. Bg3 {[%emt 0:00:39]} e5 {[%emt 0:00:17]} 20. b4 {[%emt 0:00:27]} b5 {[%emt 0:00:45]} 21. axb6 {[%emt 0:00:07]} Qxb6 {[%emt 0:00:03]} 22. Rb1 {[%emt 0:00:18]} Qb5 {[%emt 0:00:20]} 23. Raa1 {[%emt 0:00:12]} Bc7 {[%emt 0:01:00]} 24. c3 {[%emt 0:00:11]} dxc3 {[%emt 0:00:14]} 25. Nxc3 {[%emt 0:00:03]} Qc4 {[%emt 0:00:19]} 26. Nd5 {[%emt 0:00:15]} Rac8 {[%emt 0:01:39]} 27. Nxc7 {[%emt 0:00:39]} Rxc7 {[%emt 0:00:07]} 28. Qxd6 {[%emt 0:00:03]} Nd4 {[%emt 0:00:23]} 29. Bxe5 {[%emt 0:00:15]} Ne2+ {[%emt 0:01:03]} 30. Kh2 {[%emt 0:00:01]} Rc6 {[%emt 0:00:19]} 31. Qd5 {[%emt 0:00:36]} h6 {[%emt 0:00:36]} 32. Re1 {[%emt 0:01:37]} Qxd5 {[%emt 0:02:07]} 33. exd5 {[%emt 0:00:03]} Rc2 {[%emt 0:00:01]} 34. Bd6 {[%emt 0:00:15]} Re4 {[%emt 0:00:28]} 35. Bc5 {[%emt 0:00:27]} Nc3 {[%emt 0:00:52]} 36. d6 {[%emt 0:00:31]} Rxe1 {[%emt 0:00:19]} 37. Rxe1 {[%emt 0:00:02]} Rd2 {[%emt 0:00:08]} 38. Ra1 {[%emt 0:00:32]} Ne4 {[%emt 0:01:44]} 39. Rxa6 {[%emt 0:00:09]} Nxf2 {[%emt 0:00:03]} 40. Bxf2 {[%emt 0:00:10]} Rxf2 {[%emt 0:00:02]} 41. Ra8+ {[%emt 0:00:02]} Kh7 {[%emt 0:00:01]} 42. d7 {[%emt 0:00:01]} 1-0

[Event "Rapidturnier Deutsche Meister"]
[Site "Leipzig"]
[Date "2020.10.03"]
[Round "3.5"]
[White "Kunze, Kerstin"]
[Black "Burchardt, Brigitte"]
[Result "1-0"]
[ECO "B53"]
[WhiteElo "2037"]
[BlackElo "2067"]
[Annotator "ChessBase"]
[PlyCount "69"]
[EventDate "2020.10.03"]
[EventType "swiss"]
[EventCountry "GER"]
[SourceTitle "playchess.com"]
[Source "ChessBase"]
[SourceQuality "1"]
[TimeControl "900+5"]

1. e4 {[%emt 0:00:02]} c5 {[%emt 0:00:00]} 2. Nf3 {[%emt 0:00:09]} d6 {[%emt 0:00:00]} 3. d4 {[%emt 0:00:06]} cxd4 {[%emt 0:00:00]} 4. Qxd4 {[%emt 0:00:04]} Nc6 {[%emt 0:00:22]} 5. Bb5 {[%emt 0:00:02]} Bd7 {[%emt 0:02:11]} 6. Bxc6 {[%emt 0:00:05]} Bxc6 {[%emt 0:00:15]} 7. c4 {[%emt 0:00:17]} Nf6 {[%emt 0:00:01]} 8. Nc3 {[%emt 0:00:03]} g6 {[%emt 0:00:04]} 9. O-O {[%emt 0:01:22]} Bg7 {[%emt 0:00:01]} 10. Qd3 {[%emt 0:00:31]} O-O {[%emt 0:00:36]} 11. Nd4 {[%emt 0:00:19]} Rc8 {[%emt 0:00:54]} 12. b3 {[%emt 0:03:47]} Nd7 {[%emt 0:03:57]} 13. Bb2 {[%emt 0:02:03]} Ne5 {[%emt 0:00:42]} 14. Qd2 {[%emt 0:00:27]} Bd7 {[%emt 0:00:53]} 15. Rad1 {[%emt 0:02:43]} a6 {[%emt 0:00:07]} 16. Nd5 {[%emt 0:00:00]} Bg4 {[%emt 0:02:49]} 17. f3 {[%emt 0:00:20]} Be6 {[%emt 0:00:01]} 18. h3 {[%emt 0:01:55]} Nc6 {[%emt 0:02:00]} 19. Nxe6 {[%emt 0:00:44]} fxe6 {[%emt 0:00:01]} 20. Bxg7 {[%emt 0:00:02]} Kxg7 {[%emt 0:00:03]} 21. Nf4 {[%emt 0:00:33]} Qb6+ {[%emt 0:00:26]} 22. Kh2 {[%emt 0:00:09]} Rf6 {[%emt 0:00:02]} 23. Nd3 {[%emt 0:00:41]} e5 {[%emt 0:00:01]} 24. Nf2 {[%emt 0:00:20]} Nd4 {[%emt 0:00:03]} 25. Ng4 {[%emt 0:00:04]} Rf4 {[%emt 0:00:17]} 26. g3 {[%emt 0:00:10]} Rxf3 {[%emt 0:00:01]} 27. Qh6+ {[%emt 0:00:02]} Kg8 {[%emt 0:00:04]} 28. Rxf3 {[%emt 0:00:01]} Nxf3+ {[%emt 0:00:02]} 29. Kg2 {[%emt 0:00:01]} Nd4 {[%emt 0:00:04]} 30. Rf1 {[%emt 0:00:01]} Qb4 {[%emt 0:00:06]} 31. Qg5 {[%emt 0:00:07]} Ne6 {[%emt 0:00:12]} 32. Nh6+ {[%emt 0:00:03]} Kh8 {[%emt 0:00:01]} 33. Nf7+ {[%emt 0:00:03]} Kg7 {[%emt 0:00:01]} 34. Qh6+ {[%emt 0:00:01]} Kg8 {[%emt 0:00:02]} 35. Qh4 {[%emt 0:00:13]} 1-0

[Event "Rapidturnier Deutsche Meister"]
[Site "Leipzig"]
[Date "2020.10.03"]
[Round "3.6"]
[White "Seidemann, Ulricke"]
[Black "Mai, Iris"]
[Result "1/2-1/2"]
[ECO "A22"]
[WhiteElo "2043"]
[BlackElo "2021"]
[Annotator "ChessBase"]
[PlyCount "38"]
[EventDate "2020.10.03"]
[EventType "swiss"]
[EventCountry "GER"]
[SourceTitle "playchess.com"]
[Source "ChessBase"]
[SourceQuality "1"]
[TimeControl "900+5"]

1. c4 {[%emt 0:00:00]} Nf6 {[%emt 0:00:14]} 2. g3 {[%emt 0:00:03]} e5 {[%emt 0:00:36]} 3. Bg2 {[%emt 0:00:04]} Bc5 {[%emt 0:00:26]} 4. e3 {[%emt 0:00:20]} O-O {[%emt 0:00:07]} 5. Nc3 {[%emt 0:00:06]} a6 {[%emt 0:00:30]} 6. Nge2 {[%emt 0:00:03]} c6 {[%emt 0:00:16]} 7. O-O {[%emt 0:00:39]} d5 {[%emt 0:00:03]} 8. d4 {[%emt 0:00:13]} exd4 {[%emt 0:00:21]} 9. exd4 {[%emt 0:00:04]} Bb4 {[%emt 0:01:26]} 10. cxd5 {[%emt 0:00:13]} Nxd5 {[%emt 0:00:14]} 11. Nxd5 {[%emt 0:00:14]} cxd5 {[%emt 0:00:07]} 12. Qb3 {[%emt 0:00:24]} Nc6 {[%emt 0:00:38]} 13. Qxd5 {[%emt 0:01:31]} Qe7 {[%emt 0:00:53]} 14. Be3 {[%emt 0:02:25]} Be6 {[%emt 0:00:57]} 15. Qg5 {[%emt 0:01:16]} Qxg5 {[%emt 0:00:57]} 16. Bxg5 {[%emt 0:00:02]} Bc4 {[%emt 0:00:02]} 17. d5 {[%emt 0:03:47]} Ne5 {[%emt 0:00:53]} 18. Nc3 {[%emt 0:00:55]} Bxf1 {[%emt 0:00:05]} 19. Rxf1 {[%emt 0:00:12]} f6 {[%emt 0:00:50]} 1/2-1/2

[Event "Rapidturnier Deutsche Meister"]
[Site "Leipzig"]
[Date "2020.10.03"]
[Round "3.7"]
[White "Espig, Lutz"]
[Black "Schoeneberg, Manfred"]
[Result "0-1"]
[ECO "A39"]
[WhiteElo "2256"]
[BlackElo "2133"]
[Annotator "ChessBase"]
[PlyCount "90"]
[EventDate "2020.10.03"]
[EventType "swiss"]
[EventCountry "GER"]
[SourceTitle "playchess.com"]
[Source "ChessBase"]
[SourceQuality "1"]
[TimeControl "900+5"]

1. Nf3 {[%emt 0:00:00]} Nf6 {[%emt 0:00:00]} 2. c4 {[%emt 0:00:01]} c5 {[%emt 0:00:03]} 3. Nc3 {[%emt 0:00:08]} Nc6 {[%emt 0:00:04]} 4. g3 {[%emt 0:00:06]} g6 {[%emt 0:00:00]} 5. Bg2 {[%emt 0:00:01]} Bg7 {[%emt 0:00:01]} 6. O-O {[%emt 0:00:03]} O-O {[%emt 0:00:00]} 7. d4 {[%emt 0:00:01]} cxd4 {[%emt 0:00:11]} 8. Nxd4 {[%emt 0:00:01]} Nxd4 {[%emt 0:00:02]} 9. Qxd4 {[%emt 0:00:02]} d6 {[%emt 0:00:18]} 10. Qd3 {[%emt 0:00:02]} Bf5 {[%emt 0:00:39]} 11. e4 {[%emt 0:00:01]} Be6 {[%emt 0:00:17]} 12. b3 {[%emt 0:00:08]} a6 {[%emt 0:00:56]} 13. Bd2 {[%emt 0:00:22]} Rc8 {[%emt 0:00:20]} 14. Rac1 {[%emt 0:00:21]} Nd7 {[%emt 0:00:57]} 15. Rfd1 {[%emt 0:00:51]} Qc7 {[%emt 0:01:57]} 16. Nd5 {[%emt 0:00:21]} Bxd5 {[%emt 0:00:07]} 17. Qxd5 {[%emt 0:00:03]} Rfd8 {[%emt 0:01:04]} 18. Bg5 {[%emt 0:00:15]} Nf6 {[%emt 0:00:54]} 19. Qd2 {[%emt 0:00:37]} Qb8 {[%emt 0:01:05]} 20. Bf4 {[%emt 0:01:35]} b5 {[%emt 0:01:03]} 21. Qe2 {[%emt 0:00:30]} bxc4 {[%emt 0:00:07]} 22. Rxc4 {[%emt 0:00:09]} Rxc4 {[%emt 0:00:17]} 23. Qxc4 {[%emt 0:00:07]} Qb6 {[%emt 0:01:50]} 24. e5 {[%emt 0:01:14]} dxe5 {[%emt 0:00:40]} 25. Rxd8+ {[%emt 0:00:07]} Qxd8 {[%emt 0:00:01]} 26. Bxe5 {[%emt 0:00:02]} Qa5 {[%emt 0:02:24]} 27. Qe2 {[%emt 0:00:54]} h5 {[%emt 0:00:15]} 28. Bf1 {[%emt 0:00:30]} Kh7 {[%emt 0:00:21]} 29. Bf4 {[%emt 0:00:47]} Nd5 {[%emt 0:00:24]} 30. Qxa6 {[%emt 0:00:35]} Qxa6 {[%emt 0:00:18]} 31. Bxa6 {[%emt 0:00:03]} Nxf4 {[%emt 0:00:02]} 32. gxf4 {[%emt 0:00:02]} Bh6 {[%emt 0:00:01]} 33. f5 {[%emt 0:00:13]} gxf5 {[%emt 0:00:01]} 34. Kf1 {[%emt 0:00:04]} Bf4 {[%emt 0:00:05]} 35. h3 {[%emt 0:00:02]} Bd6 {[%emt 0:00:01]} 36. Bd3 {[%emt 0:00:13]} Kg6 {[%emt 0:00:01]} 37. a4 {[%emt 0:00:05]} Bb4 {[%emt 0:00:01]} 38. Bb5 e5 {[%emt 0:00:14]} 39. Be8 {[%emt 0:00:11]} e4 {[%emt 0:00:13]} 40. Ke2 {[%emt 0:00:01]} f4 {[%emt 0:00:02]} 41. Bd7 {[%emt 0:00:09]} Kf6 {[%emt 0:00:08]} 42. f3 {[%emt 0:00:13]} e3 {[%emt 0:00:11]} 43. Be8 {[%emt 0:00:09]} h4 {[%emt 0:00:01]} 44. Kd3 {[%emt 0:00:04]} Ke6 {[%emt 0:00:04]} 45. Bb5 {[%emt 0:00:00]} Ke5 {[%emt 0:00:00]} 0-1